fUST/lending_fUST_20240119
["ID","MTS","AMOUNT","RATE_DAILY","PERIOD"]
[312140893,1705667432808,-307.41985958,0.00025998,2]
[312140895,1705667432820,-155.69029805,0.00025998,2]
[312140897,1705667432832,-1111.61544435,0.00025999,2]
[312140900,1705667432844,-50603.50134455,0.00026,3]
[312140901,1705667432855,-493.015312,0.00026,2]
[312140903,1705667432868,-493.015312,0.00026,2]
[312140906,1705667432880,-8427.10922865,0.00026427,2]
[312140908,1705667432894,-3651.60952821,0.00026427,2]
[312140946,1705667438557,-1045.65136347,0.0002597,2]
[312140948,1705667438568,-18791.78,0.00026417,3]
[312140950,1705667438579,-37921.28124314,0.00026427,2]
[312140952,1705667438591,-375.16526378,0.00026477,2]
[312140953,1705667438602,-1118.71561509,0.0002658,2]
[312140955,1705667438612,-500.0,0.00026581,3]
[312140957,1705667438623,-500.0,0.00026581,3]
[312140959,1705667438634,-500.0,0.00026581,3]
[312140962,1705667438646,-500.0,0.00026581,3]
[312140964,1705667438658,-500.0,0.00026581,3]
[312140966,1705667438669,-500.0,0.00026581,3]
[312140967,1705667438680,-500.0,0.00026581,3]
[312140970,1705667438691,-485.51076799,0.00026581,3]
[312140972,1705667438702,-151.0,0.00026582,2]
[312140973,1705667438713,-287.926561,0.00026582,2]
[312140975,1705667438723,-287.926561,0.00026582,2]
[312140977,1705667438734,-232.109022,0.00026582,2]
[312140979,1705667438745,-493.015312,0.00026582,2]
[312140981,1705667438757,-493.015312,0.00026582,2]
[312140983,1705667438768,-50000.0,0.00026582,2]
[312140985,1705667438779,-235.76702763,0.00027297,2]
[312140987,1705667438789,-225.38445172,0.00027396,2]
[312140989,1705667438800,-500.0,0.00027396,2]
[312140991,1705667438811,-500.0,0.00027396,2]
[312140993,1705667438824,-250.0,0.00027396,2]
[312140995,1705667438836,-500.0,0.00027396,2]
[312140997,1705667438851,-625.30251795,0.00027396,2]
[312140999,1705667438862,-288.128273,0.00027397,2]
[312141001,1705667438873,-288.128273,0.00027397,2]
[312141003,1705667438886,-151.0,0.00027397,2]
[312141005,1705667438897,-151.0,0.00027397,2]
[312141007,1705667438908,-267.991024,0.00027397,2]
[312141009,1705667438919,-287.926561,0.00027397,2]
[312141011,1705667438931,-287.926561,0.00027397,2]
[312141013,1705667438943,-287.926561,0.00027397,2]
[312141015,1705667438954,-287.926561,0.00027397,2]
[312141017,1705667438965,-287.926561,0.00027397,2]
[312141019,1705667438977,-287.926561,0.00027397,2]
[312141021,1705667438990,-287.926561,0.00027397,2]
[312141023,1705667439002,-287.926561,0.00027397,2]
[312141025,1705667439014,-287.926561,0.00027397,2]
[312141027,1705667439025,-287.926561,0.00027397,2]
[312141029,1705667439038,-287.926561,0.00027397,2]
[312141031,1705667439049,-287.926561,0.00027397,2]
[312141033,1705667439060,-287.926561,0.00027397,2]
[312141036,1705667439073,-287.926561,0.00027397,2]
[312141038,1705667439083,-287.926561,0.00027397,2]
[312141039,1705667439095,-287.926561,0.00027397,2]
[312141042,1705667439106,-493.015312,0.00027397,2]
[312141043,1705667439117,-493.015312,0.00027397,2]
[312141046,1705667439129,-493.015312,0.00027397,2]
[312141048,1705667439141,-493.015312,0.00027397,2]
[312141050,1705667439152,-493.015312,0.00027397,2]
[312141051,1705667439162,-493.015312,0.00027397,2]
[312141053,1705667439173,-493.015312,0.00027397,2]
[312141055,1705667439184,-493.015312,0.00027397,2]
[312141057,1705667439195,-493.015312,0.00027397,2]
[312141059,1705667439206,-493.015312,0.00027397,2]
[312141061,1705667439216,-493.015312,0.00027397,2]
[312141063,1705667439227,-493.015312,0.00027397,2]
[312141065,1705667439237,-493.015312,0.00027397,2]
[312141067,1705667439249,-493.015312,0.00027397,2]
[312141069,1705667439259,-493.015312,0.00027397,2]
[312141072,1705667439271,-493.015304,0.00027397,2]
[312141073,1705667439281,-500.0,0.00027397,2]
[312141075,1705667439292,-500.0,0.00027397,2]
[312141077,1705667439303,-500.0,0.00027397,2]
[312141079,1705667439314,-367.3266649,0.00027397,2]
[312141082,1705667439326,-500.0,0.00027397,2]
[312141084,1705667439338,-500.0,0.00027397,2]
[312141086,1705667439349,-500.0,0.00027397,2]
[312141088,1705667439360,-500.0,0.00027397,2]
[312141090,1705667439371,-526.05575528,0.00027397,2]
[312141092,1705667439382,-417.65691159,0.00027397,2]
[312141094,1705667439394,-500.0,0.00027397,2]
[312141096,1705667439407,-500.0,0.00027397,2]
[312141098,1705667439418,-500.0,0.00027397,2]
[312141100,1705667439429,-545.63986365,0.00027397,2]
[312141102,1705667439441,-500.33320496,0.00027397,2]
[312141104,1705667439452,-500.0,0.00027397,2]
[312141106,1705667439463,-284.931926,0.00027397,2]
[312141108,1705667439474,-500.0,0.00027397,2]
[312141110,1705667439486,-500.0,0.00027397,2]
[312141112,1705667439497,-500.0,0.00027397,2]
[312141114,1705667439507,-500.0,0.00027397,2]
[312141116,1705667439517,-509.66,0.00027397,2]
[312141118,1705667439529,-500.0,0.00027397,2]
[312141120,1705667439540,-500.0,0.00027397,2]
[312141122,1705667439551,-500.0,0.00027397,2]
[312141124,1705667439562,-500.0,0.00027397,2]
[312141126,1705667439574,-500.0,0.00027397,2]
[312141128,1705667439585,-500.0,0.00027397,2]
[312141130,1705667439597,-500.0,0.00027397,2]
[312141132,1705667439607,-642.04263238,0.00027397,2]
[312141134,1705667439618,-500.0,0.00027397,2]
[312141136,1705667439630,-500.88805801,0.00027397,2]
[312141138,1705667439640,-500.0,0.00027397,2]
[312141140,1705667439651,-500.0,0.00027397,2]
[312141142,1705667439662,-502.28877246,0.00027397,2]
[312141144,1705667439674,-500.0,0.00027397,2]
[312141146,1705667439685,-500.0,0.00027397,2]
[312141148,1705667439697,-534.69758998,0.00027397,2]
[312141159,1705667439799,-500.0,0.00027397,2]
[312141161,1705667439811,-500.0,0.00027397,2]
[312141163,1705667439823,-504.79067501,0.00027397,2]
[312141164,1705667439836,-500.0,0.00027397,2]
[312141167,1705667439848,-500.0,0.00027397,2]
[312141169,1705667439859,-500.0,0.00027397,2]
[312141170,1705667439870,-500.0,0.00027397,2]
[312141173,1705667439884,-500.0,0.00027397,2]
[312141175,1705667439895,-500.0,0.00027397,2]
[312141176,1705667439906,-500.0,0.00027397,2]
[312141179,1705667439918,-500.0,0.00027397,2]
[312141181,1705667439931,-500.0,0.00027397,2]
[312141183,1705667439943,-500.0,0.00027397,2]
[312141185,1705667439953,-444.64232595,0.00027397,2]
[312141187,1705667439965,-500.0,0.00027397,2]
[312141189,1705667439976,-500.0,0.00027397,2]
[312141191,1705667439987,-500.0,0.00027397,2]
[312141192,1705667439998,-500.0,0.00027397,2]
[312141195,1705667440010,-500.0,0.00027397,2]
[312141197,1705667440021,-500.0,0.00027397,2]
[312141199,1705667440033,-500.0,0.00027397,2]
[312141201,1705667440044,-500.0,0.00027397,2]
[312141203,1705667440056,-500.0,0.00027397,2]
[312141204,1705667440068,-500.0,0.00027397,2]
[312141206,1705667440080,-500.0,0.00027397,2]
[312141208,1705667440092,-500.0,0.00027397,2]
[312141210,1705667440103,-500.0,0.00027397,2]
[312141212,1705667440115,-174.6243154,0.00027397,2]
[312141214,1705667440126,-500.0,0.00027397,2]
[312141216,1705667440137,-500.0,0.00027397,2]
[312141218,1705667440148,-500.0,0.00027397,2]
[312141220,1705667440159,-500.0,0.00027397,2]
[312141222,1705667440171,-500.0,0.00027397,2]
[312141224,1705667440182,-500.0,0.00027397,2]
[312141226,1705667440192,-516.44521209,0.00027397,2]
[312141228,1705667440203,-500.0,0.00027397,2]
[312141231,1705667440216,-194.81288984,0.00027397,2]
[312141232,1705667440226,-500.0,0.00027397,7]
[312141235,1705667440240,-500.0,0.00027397,2]
[312141237,1705667440251,-500.0,0.00027397,2]
[312141239,1705667440262,-500.0,0.00027397,2]
[312141240,1705667440272,-462.60822105,0.00027397,2]
[312141243,1705667440283,-500.0,0.00027397,2]
[312141245,1705667440295,-500.0,0.00027397,2]
[312141247,1705667440308,-431.15991902,0.00027397,2]
[312141249,1705667440318,-500.0,0.00027397,2]
[312141251,1705667440329,-500.0,0.00027397,2]
[312141253,1705667440340,-500.0,0.00027397,2]
[312141255,1705667440350,-500.0,0.00027397,2]
[312141257,1705667440361,-500.0,0.00027397,2]
[312141259,1705667440372,-500.0,0.00027397,2]
[312141261,1705667440383,-566.20159311,0.00027397,2]
[312141263,1705667440394,-539.01197473,0.00027397,2]
[312141265,1705667440405,-1144.87,0.00027397,2]
[312141267,1705667440416,-635.85140251,0.00027397,2]
[312141269,1705667440427,-500.37576794,0.00027397,2]
[312141270,1705667440438,-500.0,0.00027397,2]
[312141273,1705667440449,-2022.18,0.00027397,2]
[312141274,1705667440461,-500.0,0.00027397,2]
[312141276,1705667440472,-500.0,0.00027397,2]
[312141278,1705667440483,-500.0,0.00027397,2]
[312141281,1705667440496,-500.0,0.00027397,2]
[312141282,1705667440506,-500.0,0.00027397,2]
[312141283,1705667440517,-510.8176252,0.00027397,2]
[312141286,1705667440528,-500.0,0.00027397,2]
[312141287,1705667440539,-246.09219212,0.00027397,2]
[312141288,1705667440550,-500.0,0.00027397,2]
[312141289,1705667440561,-500.0,0.00027397,2]
[312141290,1705667440572,-155.0,0.00027397,2]
[312141291,1705667440583,-500.0,0.00027397,2]
[312141292,1705667440594,-500.0,0.00027397,2]
[312141293,1705667440605,-500.0,0.00027397,2]
[312141294,1705667440617,-500.0,0.00027397,2]
[312141295,1705667440627,-180.35298361,0.00027397,2]
[312141298,1705667440638,-500.0,0.00027397,2]
[312141300,1705667440649,-500.0,0.00027397,2]
[312141301,1705667440660,-500.0,0.00027397,2]
[312141302,1705667440670,-500.0,0.00027397,2]
[312141303,1705667440680,-500.0,0.00027397,2]
[312141304,1705667440691,-500.0,0.00027397,2]
[312141306,1705667440702,-500.0,0.00027397,2]
[312141307,1705667440714,-1065.44,0.00027397,2]
[312141309,1705667440724,-11232.55,0.00027397,2]
[312141310,1705667440736,-500.0,0.00027397,2]
[312141311,1705667440747,-500.0,0.00027397,2]
[312141312,1705667440757,-3660.04,0.00027397,2]
[312141313,1705667440769,-182.80947998,0.00027397,2]
[312141314,1705667440779,-500.0,0.00027397,2]
[312141315,1705667440790,-20180.39,0.00027397,2]
[312141316,1705667440802,-500.0,0.00027397,2]
[312141317,1705667440812,-500.0,0.00027397,2]
[312141318,1705667440823,-500.13620846,0.00027397,2]
[312141319,1705667440834,-1845.9,0.00027397,2]
[312141321,1705667440847,-500.0,0.00027397,2]
[312141323,1705667440858,-535.12902412,0.00027397,2]
[312141325,1705667440869,-500.0,0.00027397,2]
[312141327,1705667440882,-330.77387985,0.00027397,2]
[312141329,1705667440893,-500.0,0.00027397,2]
[312141331,1705667440904,-1484.16,0.00027397,2]
[312141333,1705667440916,-574.52467871,0.00027397,2]
[312141335,1705667440928,-500.0,0.00027397,2]
[312141337,1705667440939,-1034.99,0.00027397,2]
[312141339,1705667440951,-500.0,0.00027397,2]
[312141341,1705667440961,-500.0,0.00027397,2]
[312141343,1705667440972,-500.78157779,0.00027397,2]
[312141345,1705667440983,-500.0,0.00027397,2]
[312141347,1705667440995,-500.0,0.00027397,2]
[312141349,1705667441006,-500.0,0.00027397,2]
[312141351,1705667441017,-500.0,0.00027397,2]
[312141353,1705667441029,-500.0,0.00027397,2]
[312141355,1705667441040,-504.89253781,0.00027397,2]
[312141357,1705667441052,-500.64880738,0.00027397,2]
[312141360,1705667441063,-500.0,0.00027397,2]
[312141362,1705667441074,-500.0,0.00027397,2]
[312141363,1705667441086,-500.0,0.00027397,2]
[312141366,1705667441097,-500.0,0.00027397,2]
[312141368,1705667441108,-500.0,0.00027397,2]
[312141370,1705667441120,-500.0,0.00027397,2]
[312141372,1705667441131,-500.0,0.00027397,2]
[312141374,1705667441142,-500.0,0.00027397,2]
[312141376,1705667441153,-500.0,0.00027397,2]
[312141378,1705667441165,-500.0,0.00027397,2]
[312141380,1705667441176,-500.0,0.00027397,2]
[312141382,1705667441187,-500.0,0.00027397,2]
[312141383,1705667441198,-505.83850922,0.00027397,2]
[312141385,1705667441209,-500.0,0.00027397,2]
[312141387,1705667441222,-501.41665242,0.00027397,2]
[312141389,1705667441233,-500.0,0.00027397,2]
[312141391,1705667441244,-500.0,0.00027397,2]
[312141393,1705667441255,-500.0,0.00027397,2]
[312141395,1705667441266,-3841.56,0.00027397,2]
[312141398,1705667441280,-500.0,0.00027397,2]
[312141399,1705667441290,-825.46,0.00027397,2]
[312141401,1705667441300,-500.0,0.00027397,2]
[312141403,1705667441311,-500.0,0.00027397,2]
[312141406,1705667441324,-500.0,0.00027397,2]
[312141407,1705667441336,-500.0,0.00027397,2]
[312141410,1705667441348,-500.0,0.00027397,2]
[312141412,1705667441360,-500.0,0.00027397,2]
[312141414,1705667441371,-500.0,0.00027397,2]
[312141416,1705667441382,-1454.26,0.00027397,2]
[312141418,1705667441393,-500.0,0.00027397,2]
[312141420,1705667441404,-500.0,0.00027397,2]
[312141422,1705667441415,-508.39221343,0.00027397,2]
[312141424,1705667441426,-3853.92,0.00027397,2]
[312141426,1705667441437,-760.8,0.00027397,2]
[312141428,1705667441448,-500.0,0.00027397,2]
[312141430,1705667441459,-502.9550057,0.00027397,2]
[312141432,1705667441470,-500.0,0.00027397,2]
[312141434,1705667441481,-443.30040039,0.00027397,2]
[312141436,1705667441491,-655.04,0.00027397,2]
[312141437,1705667441502,-500.0,0.00027397,2]
[312141439,1705667441513,-500.0,0.00027397,2]
[312141441,1705667441524,-4838.72,0.00027397,2]
[312141443,1705667441535,-500.0,0.00027397,2]
[312141445,1705667441546,-1135.54,0.00027397,2]
[312141447,1705667441558,-500.0,0.00027397,2]
[312141450,1705667441569,-2055.32,0.00027397,2]
[312141451,1705667441579,-385.27725288,0.00027397,2]
[312141454,1705667441591,-500.58497799,0.00027397,2]
[312141456,1705667441603,-469.635359,0.00027397,2]
[312141458,1705667441613,-500.99613015,0.00027397,2]
[312141460,1705667441624,-500.0,0.00027397,2]
[312141462,1705667441635,-491.60142791,0.00027397,2]
[312141464,1705667441646,-500.0,0.00027397,2]
[312141466,1705667441657,-500.0,0.00027397,2]
[312141468,1705667441669,-500.0,0.00027397,2]
[312141470,1705667441680,-508.82301364,0.00027397,2]
[312141472,1705667441691,-500.0,0.00027397,2]
[312141474,1705667441702,-1261.94,0.00027397,2]
[312141476,1705667441713,-547.84132818,0.00027488,2]
[312141478,1705667441724,-500.0,0.00027496,2]
[312141480,1705667441736,-350.0,0.00027671,2]
[312141482,1705667441746,-350.0,0.00027671,2]
[312141484,1705667441757,-288.128273,0.00027671,2]
[312141486,1705667441768,-288.128273,0.00027671,2]
[312141488,1705667441780,-287.926561,0.00027671,2]
[312141490,1705667441791,-287.92656399,0.00027671,2]
[312141498,1705667441878,-500.86771326,0.00027671,2]
[312141500,1705667441892,-500.0,0.00027671,2]
[312141503,1705667441905,-561.80647202,0.00027671,2]
[312141505,1705667441917,-500.0,0.00027671,2]
[312141506,1705667441927,-500.0,0.00027671,2]
[312141509,1705667441938,-505.29565401,0.00027671,2]
[312141511,1705667441950,-500.0,0.00027671,2]
[312141513,1705667441961,-500.0,0.00027671,2]
[312141514,1705667441973,-500.0,0.00027671,2]
[312141517,1705667441984,-502.35871173,0.00027671,2]
[312141518,1705667441994,-500.0,0.00027671,2]
[312141521,1705667442006,-513.59030974,0.00027671,2]
[312141523,1705667442018,-500.0,0.00027671,2]
[312141525,1705667442028,-500.0,0.00027671,2]
[312141527,1705667442040,-509.66,0.00027671,2]
[312141529,1705667442052,-500.0,0.00027671,2]
[312141530,1705667442063,-500.0,0.00027671,2]
[312141533,1705667442075,-500.0,0.00027671,2]
[312141534,1705667442086,-500.0,0.00027671,2]
[312141537,1705667442097,-500.0,0.00027671,2]
[312141539,1705667442112,-500.0,0.00027671,2]
[312141540,1705667442123,-500.0,0.00027671,2]
[312141542,1705667442134,-500.0,0.00027671,2]
[312141545,1705667442145,-500.0,0.00027671,2]
[312141547,1705667442158,-500.0,0.00027671,2]
[312141549,1705667442170,-500.0,0.00027671,2]
[312141551,1705667442181,-500.0,0.00027671,2]
[312141553,1705667442192,-500.0,0.00027671,2]
[312141555,1705667442203,-500.0,0.00027671,2]
[312141557,1705667442215,-500.0,0.00027671,2]
[312141559,1705667442226,-500.0,0.00027671,2]
[312141561,1705667442238,-440.42890775,0.00027671,2]
[312141563,1705667442249,-502.91124872,0.00027671,2]
[312141565,1705667442259,-524.18602468,0.00027671,2]
[312141567,1705667442270,-500.0,0.00027671,2]
[312141569,1705667442280,-500.0,0.00027671,2]
[312141571,1705667442292,-500.0,0.00027671,2]
[312141573,1705667442302,-501.4314439,0.00027671,2]
[312141575,1705667442314,-500.0,0.00027671,2]
[312141577,1705667442324,-502.1634203,0.00027671,2]
[312141579,1705667442336,-500.0,0.00027671,2]
[312141581,1705667442347,-500.0,0.00027671,2]
[312141583,1705667442359,-503.71487664,0.00027671,2]
[312141585,1705667442370,-500.0,0.00027671,2]
[312141587,1705667442381,-500.0,0.00027671,2]
[312141589,1705667442392,-514.14096888,0.00027671,2]
[312141591,1705667442402,-500.0,0.00027671,2]
[312141593,1705667442412,-500.0,0.00027671,2]
[312141595,1705667442423,-502.95572955,0.00027671,2]
[312141597,1705667442434,-500.0,0.00027671,2]
[312141599,1705667442445,-500.0,0.00027671,2]
[312141601,1705667442456,-500.0,0.00027671,2]
[312141603,1705667442467,-501.19114178,0.00027671,7]
[312141605,1705667442478,-500.0,0.00027671,2]
[312141607,1705667442489,-503.70030649,0.00027671,2]
[312141609,1705667442500,-500.0,0.00027671,2]
[312141611,1705667442511,-500.0,0.00027671,2]
[312141613,1705667442522,-209.72856301,0.00027671,2]
[312141615,1705667442532,-500.0,0.00027671,2]
[312141617,1705667442545,-500.0,0.00027671,2]
[312141619,1705667442555,-499.25770796,0.00027671,2]
[312141621,1705667442566,-1144.87,0.00027671,2]
[312141623,1705667442577,-500.0,0.00027671,2]
[312141625,1705667442587,-2022.18,0.00027671,2]
[312141627,1705667442599,-500.0,0.00027671,2]
[312141629,1705667442610,-500.0,0.00027671,2]
[312141631,1705667442621,-568.40930442,0.00027671,2]
[312141633,1705667442632,-500.0,0.00027671,2]
[312141635,1705667442644,-500.0,0.00027671,2]
[312141637,1705667442655,-500.0,0.00027671,2]
[312141639,1705667442666,-500.0,0.00027671,2]
[312141641,1705667442677,-500.0,0.00027671,2]
[312141643,1705667442687,-500.0,0.00027671,2]
[312141645,1705667442698,-500.0,0.00027671,2]
[312141647,1705667442708,-500.0,0.00027671,2]
[312141649,1705667442719,-500.0,0.00027671,2]
[312141651,1705667442730,-500.0,0.00027671,2]
[312141653,1705667442741,-500.0,0.00027671,2]
[312141655,1705667442753,-500.0,0.00027671,2]
[312141657,1705667442765,-500.0,0.00027671,2]
[312141659,1705667442776,-500.0,0.00027671,2]
[312141661,1705667442786,-500.0,0.00027671,2]
[312141663,1705667442796,-1065.44,0.00027671,2]
[312141665,1705667442807,-11232.55,0.00027671,2]
[312141667,1705667442818,-500.0,0.00027671,2]
[312141669,1705667442829,-500.0,0.00027671,2]
[312141671,1705667442841,-3660.04,0.00027671,2]
[312141673,1705667442855,-500.0,0.00027671,2]
[312141675,1705667442865,-20180.39,0.00027671,2]
[312141677,1705667442876,-500.0,0.00027671,2]
[312141679,1705667442886,-500.0,0.00027671,2]
[312141681,1705667442897,-1845.9,0.00027671,2]
[312141683,1705667442908,-500.0,0.00027671,2]
[312141685,1705667442919,-500.0,0.00027671,2]
[312141687,1705667442931,-1484.16,0.00027671,2]
[312141691,1705667442944,-1034.99,0.00027671,2]
[312141695,1705667442956,-500.0,0.00027671,2]
[312141699,1705667442968,-601.58693995,0.00027671,2]
[312141703,1705667442979,-500.53031747,0.00027671,2]
[312141706,1705667442991,-500.0,0.00027671,2]
[312141709,1705667443001,-500.0,0.00027671,2]
[312141712,1705667443013,-500.0,0.00027671,2]
[312141716,1705667443024,-500.0,0.00027671,2]
[312141719,1705667443035,-500.0,0.00027671,2]
[312141722,1705667443046,-500.0,0.00027671,2]
[312141725,1705667443057,-500.0,0.00027671,2]
[312141728,1705667443068,-500.0,0.00027671,2]
[312141733,1705667443080,-500.0,0.00027671,2]
[312141737,1705667443092,-500.0,0.00027671,2]
[312141741,1705667443104,-500.0,0.00027671,2]
[312141746,1705667443114,-504.17788797,0.00027671,2]
[312141749,1705667443125,-586.54466235,0.00027671,2]
[312141752,1705667443136,-180.91474899,0.00027671,2]
[312141755,1705667443147,-500.0,0.00027671,2]
[312141758,1705667443158,-500.0,0.00027671,2]
[312141761,1705667443170,-500.0,0.00027671,2]
[312141764,1705667443183,-500.0,0.00027671,2]
[312141767,1705667443193,-500.0,0.00027671,2]
[312141770,1705667443204,-3841.56,0.00027671,2]
[312141773,1705667443214,-500.0,0.00027671,2]
[312141776,1705667443225,-825.46,0.00027671,2]
[312141779,1705667443235,-500.0,0.00027671,2]
[312141782,1705667443246,-507.59096993,0.00027671,2]
[312141785,1705667443258,-500.0,0.00027671,2]
[312141788,1705667443269,-500.0,0.00027671,2]
[312141791,1705667443281,-500.0,0.00027671,2]
[312141794,1705667443292,-500.0,0.00027671,2]
[312141797,1705667443303,-500.0,0.00027671,2]
[312141800,1705667443314,-1454.26,0.00027671,2]
[312141803,1705667443324,-500.0,0.00027671,2]
[312141806,1705667443336,-500.47952673,0.00027671,2]
[312141809,1705667443347,-3853.92,0.00027671,2]
[312141812,1705667443362,-760.8,0.00027671,2]
[312141815,1705667443373,-500.0,0.00027671,2]
[312141817,1705667443385,-500.0,0.00027671,2]
[312141819,1705667443395,-655.04,0.00027671,2]
[312141821,1705667443407,-500.0,0.00027671,2]
[312141823,1705667443417,-500.0,0.00027671,2]
[312141825,1705667443428,-4838.72,0.00027671,2]
[312141827,1705667443439,-500.0,0.00027671,2]
[312141829,1705667443450,-1135.54,0.00027671,2]
[312141831,1705667443461,-500.0,0.00027671,2]
[312141833,1705667443472,-2055.32,0.00027671,2]
[312141835,1705667443484,-472.61612095,0.00027671,2]
[312141837,1705667443495,-500.0,0.00027671,2]
[312141839,1705667443505,-500.0,0.00027671,2]
[312141840,1705667443516,-500.0,0.00027671,2]
[312141842,1705667443527,-500.0,0.00027671,2]
[312141844,1705667443537,-1261.94,0.00027671,2]
[312141846,1705667443548,-235.76702759,0.00027708,2]
[312141849,1705667443560,-377.622,0.00027944,2]
[312141850,1705667443574,-500.0,0.00027944,4]
[312141852,1705667443584,-475.01653594,0.00027944,4]
[312141854,1705667443595,-521.80015784,0.00027944,4]
[312141856,1705667443605,-407.17228242,0.00027944,4]
[312141858,1705667443616,-235.90727314,0.00027944,4]
[312141860,1705667443627,-350.0,0.00027945,2]
[312141862,1705667443638,-350.0,0.00027945,2]
[312141864,1705667443649,-288.128273,0.00027945,2]
[312141866,1705667443660,-288.128273,0.00027945,2]
[312141868,1705667443671,-288.128273,0.00027945,2]
[312141870,1705667443682,-288.128273,0.00027945,2]
[312141872,1705667443692,-500.0,0.00027945,2]
[312141874,1705667443702,-500.0,0.00027945,2]
[312141882,1705667443785,-502.00456235,0.00027945,2]
[312141885,1705667443802,-500.0,0.00027945,2]
[312141887,1705667443814,-500.0,0.00027945,2]
[312141889,1705667443825,-500.0,0.00027945,2]
[312141891,1705667443836,-500.0,0.00027945,2]
[312141893,1705667443849,-500.0,0.00027945,2]
[312141895,1705667443861,-500.0,0.00027945,2]
[312141897,1705667443873,-509.66,0.00027945,2]
[312141899,1705667443885,-500.0,0.00027945,2]
[312141901,1705667443896,-500.0,0.00027945,2]
[312141903,1705667443907,-500.0,0.00027945,2]
[312141905,1705667443919,-500.0,0.00027945,2]
[312141907,1705667443930,-500.0,0.00027945,2]
[312141909,1705667443941,-500.0,0.00027945,2]
[312141911,1705667443953,-500.0,0.00027945,2]
[312141913,1705667443964,-500.0,0.00027945,2]
[312141915,1705667443976,-505.39441684,0.00027945,2]
[312141917,1705667443987,-203.19286283,0.00027945,2]
[312141919,1705667443998,-500.0,0.00027945,2]
[312141921,1705667444009,-500.0,0.00027945,2]
[312141923,1705667444020,-521.3858914,0.00027945,2]
[312141925,1705667444031,-500.0,0.00027945,2]
[312141927,1705667444042,-500.0,0.00027945,2]
[312141929,1705667444054,-588.12453349,0.00027945,2]
[312141931,1705667444065,-500.0,0.00027945,2]
[312141933,1705667444076,-500.0,0.00027945,2]
[312141935,1705667444087,-504.00329423,0.00027945,2]
[312141937,1705667444099,-365.39110679,0.00027945,2]
[312141939,1705667444109,-500.0,0.00027945,2]
[312141941,1705667444120,-391.31701219,0.00027945,2]
[312141942,1705667444131,-503.42884817,0.00027945,2]
[312141945,1705667444142,-500.0,0.00027945,2]
[312141946,1705667444154,-500.0,0.00027945,2]
[312141949,1705667444166,-566.97051211,0.00027945,2]
[312141951,1705667444177,-500.0,0.00027945,2]
[312141952,1705667444189,-500.0,0.00027945,2]
[312141954,1705667444200,-500.0,0.00027945,2]
[312141956,1705667444211,-500.0,0.00027945,2]
[312141958,1705667444222,-500.0,0.00027945,2]
[312141960,1705667444233,-500.0,0.00027945,2]
[312141962,1705667444243,-503.74921637,0.00027945,2]
[312141964,1705667444254,-396.41630454,0.00027945,2]
[312141966,1705667444264,-1144.87,0.00027945,2]
[312141967,1705667444276,-177.77154326,0.00027945,2]
[312141968,1705667444287,-2022.18,0.00027945,2]
[312141969,1705667444298,-500.0,0.00027945,2]
[312141970,1705667444309,-500.0,0.00027945,2]
[312141972,1705667444319,-500.0,0.00027945,2]